Cogmind - Beta 13 @@@ ROGUE MODE // 2024.04.10 @ 04:37:38 Player: alkaline Result: Self-destructed Performance ------------- Evolutions (1) 500 Regions Visited (2) 400 Robots Destroyed (14) 70 Value Destroyed (417) 417 Prototype IDs (3) 60 Alien Tech Used (0) 0 Bonus (0) 0 TOTAL SCORE: 1447 Bonus ------- None Cogmind --------- Core Integrity 109/400 Matter 295/300 Energy 280/280 System Corruption 0% Temperature Warning (327) Movement Walking (120) Location -9/Materials Parts ------- > --- POWER (1) -------- Heavy Ion Engine > --- PROPULSION (3) --- Aluminum Leg Aluminum Leg Aluminum Leg > --- UTILITY (3) ------ Hardened Light Armor Plating Hardened Light Armor Plating Hardened Light Armor Plating > --- WEAPON (2) ------- Small Laser > --- INVENTORY (5) ---- Ion Engine Improved Ion Engine Large Matter Pod (150) Weapon Shielding Small Laser Peak State ------------ > --- POWER ------------ Heavy Ion Engine > --- PROPULSION ------- Aluminum Leg Aluminum Leg > --- UTILITY ---------- Hardened Light Armor Plating Hardened Light Armor Plating Hardened Light Armor Plating > --- WEAPON ----------- Particle Gun Particle Gun > --- INVENTORY -------- Ion Engine Improved Ion Engine Large Matter Pod Terrain Scan Processor Small Laser [Rating: 15] Favorites ----------- Power Heavy Ion Engine Engine Heavy Ion Engine Propulsion Aluminum Leg Leg Aluminum Leg Hover Unit Improved Hover Unit Utility Seismic Detector Device Seismic Detector Storage Large Matter Pod Protection Light Armor Plating Weapon Small Laser Energy Gun Small Laser Build | -11 -10 -9 ------- Run | Yrd Mat Mat Slots Evolved 2 | . . 2 Power . | . . . Propulsion 1 | . . 1 Utility 1 | . . 1 Weapon . | . . . Parts Attached 28 | 5 8 15 Power 7 | 1 4 2 Engine 7 | 1 4 2 Core . | . . . Reactor . | . . . Propulsion 8 | 2 . 6 Treads . | . . . Leg 7 | 2 . 5 Wheel . | . . . Hover 1 | . . 1 Flight . | . . . Utility 8 | . 4 4 Device 1 | . 1 . Storage 1 | . 1 . Processor . | . . . Hackware . | . . . Protection 6 | . 2 4 Artifact . | . . . Weapon 5 | 2 . 3 Energy Gun 5 | 2 . 3 Energy Cannon . | . . . Ballistic Gun . | . . . Ballistic Cannon . | . . . Launcher . | . . . Special Weapon . | . . . Impact Weapon . | . . . Slashing Weapon . | . . . Piercing Weapon . | . . . Special Melee Weapon . | . . . Unidentified Prototypes 1 | . 1 . Parts Lost 2 | . . 2 Power . | . . . Propulsion 1 | . . 1 Utility . | . . . Weapon 1 | . . 1 Highest Loss Streak 1 | . . 1 To Critical Strikes . | . . . Average Slot Usage (%) 96 | . 99 91 Engine 12 | . 14 10 Leg 27 | . 28 26 Device 10 | . 12 5 Protection 18 | . 13 27 Energy Gun 25 | . 28 21 Naked Turns . | . . . Heaviest Build 29 | 5 14 29 Greatest Support 30 | 20 20 30 Greatest Overweight (x) 1 | . . 1 Average Overweight (x) . | . . . Largest Inventory Capacity 5 | 5 5 5 Average Capacity 5 | 5 5 5 Most Carried 5 | 1 5 5 Average Carried 4 | . 4 4 Final Capacity 5 | 5 5 5 Final Carried 5 | 1 5 5 Class Distribution -------------------- 89% | Mutant 10% | Scavenger-Mutant Dominant Class ---------------- Mutant | -10/Materials Mutant | -9/Materials Resources | -11 -10 -9 ----------- Run | Yrd Mat Mat Matter Collected 661 | 250 227 184 Remotely . | . . . Salvage Created 492 | 39 226 227 Parts 27 | 1 12 14 Haulers Intercepted . | . . . Recyclers Shooed . | . . . Parts Field Recycled . | . . . Retrieved Matter . | . . . Parts Self-Destructed . | . . . Prevented . | . . . Kills | -11 -10 -9 ------- Run | Yrd Mat Mat Combat Hostiles Destroyed 14 | 1 7 6 Guns 14 | 1 7 6 Classes Destroyed 3 | 1 1 1 Swarmer 3 | . 3 . Grunt 10 | 1 4 5 Duelist 1 | . . 1 Best Kill Streak 4 | 1 3 4 Combat Bots Only 4 | 1 3 4 Max Kills in Single Turn 1 | 1 1 1 Gunslinging . | . . . Exploded . | . . . Melee . | . . . Uniques/NPCs Destroyed . | . . . Combat | -11 -10 -9 -------- Run | Yrd Mat Mat Hostile Shots Fired 87 | 4 39 44 Missed 21 | 1 11 9 Damage Taken 1034 | 33 287 714 Core 345 | . 54 291 Absorbed by Shields . | . . . Core Remaining (%) 89 | 100 78 . Volleys Fired 61 | 3 32 26 Largest 2 | 2 2 2 Hottest 130 | 80 80 130 Shots Fired 117 | 6 64 47 Gun 117 | 6 64 47 Cannon . | . . . Launcher . | . . . Special . | . . . Kinetic . | . . . Thermal 117 | 6 64 47 Explosive . | . . . Electromagnetic . | . . . Robot Hit Streak 6 | 2 6 5 Robot Miss Streak 7 | 1 7 5 Penetration Max . | . . . Secondary Targets . | . . . Shots Hit Robots 66 | 4 34 28 Core Hits 28 | 2 15 11 Critical Kills . | . . . Critical Parts Destroyed . | . . . Critical Strikes 1 | . . 1 Burn 1 | . . 1 Melee Attacks . | . . . Impact . | . . . Slashing . | . . . Piercing . | . . . Sneak Attacks . | . . . Combat Hostiles . | . . . Follow-up Attacks . | . . . Damage Inflicted 830 | 41 403 386 Guns 828 | 41 401 386 Cannons . | . . . Explosions . | . . . Melee . | . . . Ramming 2 | . 2 . Kinetic . | . . . Thermal 828 | 41 401 386 Explosive . | . . . Electromagnetic . | . . . Impact . | . . . Slashing . | . . . Piercing . | . . . Highest Corruption 1 | . 1 . Average Corruption 1 | . 1 . Corruption Purged . | . . . Corruption Blocked . | . . . Overload Shots . | . . . Overflow Damage . | . . . Projectiles . | . . . Explosions . | . . . Melee . | . . . Knockbacks 1 | . 1 . Impact 1 | . 1 . Kinetic . | . . . Secondary . | . . . Self-Inflicted Damage . | . . . Shots . | . . . Rammed . | . . . Targets Rammed 1 | . 1 . Kicked 1 | . 1 . Crushed . | . . . Highest Temperature 704 | 72 310 704 Average Temperature 179 | 40 106 249 Received Heat Transfer 306 | 18 126 162 Effects 29 | . 1 28 Shutdowns 3 | . . 3 Energy Bleed 8 | . 1 7 Interference 4 | . . 4 Matter Decay 2 | . . 2 Short Circuit 2 | . . 2 Damage (minor) 2 | . . 2 Damage (major) 5 | . . 5 Damage (core) 3 | . . 3 Siege Activations . | . . . Robots Corrupted . | . . . Combat Hostiles . | . . . Parts Fried . | . . . Impact Corruptions . | . . . Robots Melted . | . . . Combat Hostiles . | . . . Parts Melted 2 | . . 2 Heat Transferred 1993 | 100 925 968 Parts Sabotaged . | . . . Parts Stolen . | . . . Parts Stripped . | . . . Power Chain Reactions . | . . . Alert | -11 -10 -9 ------- Run | Yrd Mat Mat Peak Influence 199 | 20 138 199 Initial 38 | . 13 38 Average 70 | 2 58 113 Maximum Alert Level . | . . . Low Security (%) 100 | 100 100 100 Level 1 . | . . . Level 2 . | . . . Level 3 . | . . . Level 4 . | . . . Level 5 . | . . . High Security . | . . . Max Security . | . . . Squads Dispatched 1 | . . 1 Investigation . | . . . Extermination . | . . . Reinforcement 1 | . . 1 Assault . | . . . Garrison . | . . . Intercept . | . . . Searches Triggered . | . . . Construction Impeded . | . . . Haulers Reinforced . | . . . Active Scanning Responses . | . . . Cargo Convoy Interrupts . | . . . Stealth | -11 -10 -9 --------- Run | Yrd Mat Mat Distress Signals 4 | . 2 2 Communications Jammed . | . . . Distress Signals . | . . . Times Spotted 31 | 1 15 15 Peak Tracking Total 6 | 1 5 6 Tactical Retreats . | . . . Traps | -11 -10 -9 ------- Run | Yrd Mat Mat Traps Triggered . | . . . Indirectly . | . . . Trap Hack Attempts . | . . . Triggered . | . . . Disarmed . | . . . Reprogrammed . | . . . Reused . | . . . Traps Extracted . | . . . Installed . | . . . Triggered . | . . . Machines | -11 -10 -9 ---------- Run | Yrd Mat Mat Machines Disabled . | . . . Max in Single Turn . | . . . Machines Repaired . | . . . Machines Dismantled . | . . . Machines Sabotaged . | . . . Overloaded Fab Kills . | . . . Hacking | -11 -10 -9 --------- Run | Yrd Mat Mat Machines Accessed 2 | . 2 . Terminals 2 | . 2 . Fabricators . | . . . Repair Stations . | . . . Recycling Units . | . . . Scanalyzers . | . . . Garrison Access . | . . . Total Hacks 7 | . 7 . Successful 4 | . 4 . Failed 3 | . 3 . Catastrophic 1 | . 1 . Database Lockouts . | . . . Manual . | . . . Terminals 7 | . 7 . Fabricators . | . . . Repair Stations . | . . . Recycling Units . | . . . Scanalyzers . | . . . Garrison Access . | . . . Terminal Hacks 4 | . 4 . Record 2 | . 2 . Prototype ID Bank 1 | . 1 . Emergency Access Points 1 | . 1 . Fabricator Hacks . | . . . Repair Station Hacks . | . . . Recycling Unit Hacks . | . . . Scanalyzer . | . . . Garrison Access Hacks . | . . . Unauthorized Hacks . | . . . Terminals . | . . . Fabricators . | . . . Repair Stations . | . . . Recycling Units . | . . . Scanalyzers . | . . . Garrison Access . | . . . Data Cores Recovered . | . . . Used . | . . . Hacking Detections 2 | . 2 . Full Trace Events 1 | . 1 . Feedback Events 1 | . 1 . Corruption 1 | . 1 . Feedback Blocked . | . . . Robot Schematics Acquired . | . . . Robots Built . | . . . Authchips . | . . . Time . | . . . Total Robot Build Rating . | . . . Part Schematics Acquired . | . . . Parts Built . | . . . Authchips . | . . . Time . | . . . Total Part Build Rating . | . . . Parts Repaired . | . . . Time . | . . . Parts Recycled . | . . . Recycled Matter . | . . . Retrieved Matter . | . . . Retrieved Components . | . . . Parts Scanalyzed . | . . . Part Schematics Acquired . | . . . Parts Damaged . | . . . Bothacking | -11 -10 -9 ------------ Run | Yrd Mat Mat Used RIF Installer . | . . . Robots Hacked . | . . . Non-combat . | . . . Combat . | . . . Robot Hacks Applied . | . . . Relay Couplers Released . | . . . Fabnet Peak Effective % . | . . . Robots Rewired . | . . . Allies Hacked . | . . . Hacks Repelled . | . . . Allies | -11 -10 -9 -------- Run | Yrd Mat Mat Total Allies . | . . . Largest Group . | . . . Highest-Rated Group . | . . . Highest-Rated Ally . | . . . Total Orders . | . . . Ally Attacks . | . . . Total Damage . | . . . Kills . | . . . Allies Corrupted . | . . . Allies Melted . | . . . Intel | -11 -10 -9 ------- Run | Yrd Mat Mat Robot Analysis Total . | . . . Derelict Logs Recovered . | . . . Drone Launches . | . . . Drone Recoveries . | . . . Exploration | -11 -10 -9 ------------- Run | Yrd Mat Mat Turns Passed 1109 | 83 693 333 Spaces Moved 638 | 65 462 111 Core 17 | 17 . . Treads . | . . . Legs 621 | 48 462 111 Wheels . | . . . Hover . | . . . Flight . | . . . Fastest Speed 50 | 50 120 120 Average Speed 121 | 101 120 137 Slowest Speed 190 | 120 120 190 Overloaded Moves . | . . . Propulsion Burnouts . | . . . Robots Hopped . | . . . Cave-ins Triggered . | . . . Exploration Rate (%) 25 | 5 62 8 Regions Visited 2 Branch Regions . Pre-discovered Areas . | . . . Known Exits Taken . | . . . Unknown Exits Taken 2 | 1 1 . Scrap Searched . | . . . Spaces Dug . | . . . Terrain Destroyed . | . . . Melee . | . . . Projectile . | . . . AOE . | . . . Terrain Rammed . | . . . Walls Destroyed . | . . . Machines Disabled . | . . . Actions | -11 -10 -9 --------- Run | Yrd Mat Mat Total 850 | 73 534 243 Wait 103 | . 24 79 Move 636 | 64 461 111 Hop . | . . . Pick Up 7 | 1 4 2 Fast Attach 20 | 5 5 10 Attach 2 | . . 2 Detach . | . . . Swap 6 | . 3 3 Drop 14 | . 4 10 Fire 61 | 3 32 26 Melee . | . . . Ram . | . . . Kick 1 | . 1 . Crush . | . . . Escape Stasis . | . . . Rewire . | . . . Trap . | . . . Miscellaneous . | . . . Route ------- -11/Scrapyard -10/Materials (discovered 3 exits: [*Mat x2] / [*Min]) -9/Materials (discovered 1 exit: [*Min]) History --------- Turn | Location | Event 2 | -11/Scrapyard | Met Revision 17 62 | -11/Scrapyard | Discovered new exit (range 8) 84 | -11/Scrapyard | Entered Materials 284 | -10/Materials | Discovered new exit (range 6) 300 | -10/Materials | Build established: Mutant 323 | -10/Materials | Discovered new exit (range 10) 563 | -10/Materials | Discovered new exit (range 15) 777 | -10/Materials | Entered another Materials area 777 | -9/Materials | Evolved 2 slots: Propulsion x1, Utility x1 905 | -9/Materials | Discovered new exit (range 12) 1000 | -9/Materials | Core integrity fell below 50% 1110 | -9/Materials | Self-destructed Last Messages --------------- 01022_ Overheating: Aluminum Leg damaged (-48). 01028_ Overheating: Energy bleed (-52). 01032_ Overheating: Energy bleed (-69). 01033_ Overheating: Energy bleed (-40). 01063_ K-01 Serf collects debris. 01074_ Dropped Broken Aluminum Leg. 01075_ Acquired Aluminum Leg. 01077_ K-01 Serf collects debris. 01077_ W-16 Scout sends out distress signal. 01077_ Acquired 68 matter. 01079_ Acquired 71 matter. 01080_ Dropped Aluminum Leg. 01082_ Acquired Aluminum Leg. 01087_ K-01 Serf collects debris. 01090_ Particle Gun destroyed. 01093_ Overheating: System interference. 01093_ Sml. Laser temporarily disabled. 01096_ K-01 Serf collects debris. 01109_ Overheating: System interference. 01109_ Sml. Laser temporarily disabled. Map ----- +----------------------------------------------------+ | ?????????????????????????????????????????????????? | | ?????????????????????????????????????????????????? | | ?????????????????????????????????????????????????? | | ?????????????????????????????????????????????????? | | ?????????????????????????????????????????????????? | | ?????????????????????????????????????????????????? | | ???????????????????????????????????????########### | | ?????????????????????? ??????????????# # | | ?????????????????????# ??????????????# # | | ?????????????????????# ??????????????# """ ?# | | ?????????????????????# #?????????????# """ ?# | | ?????????????????????# #?????????????# """??# | | ?????????????????????# ############### ??#= | | ?????????????????????# ###+######+ | | ??????????????######## % | | ?????????????# # """ ! [ | | ????????????? """ ! [ | | ???????????? < """ ![ ########### | | ????????????? #?????????? | | ?????????????# ##^ ^ #?????????? | | ??????????????????????# ###???????? | | ??????????????????????# [[] #???????? | | ??????????????????????# [ ] #???????? | | ??????????????????????#%= []] #???????? | | ???????????????????#####g########+#### ###???????? | | ???????????????????# [[!@![ #?? ???? #?????????? | | ???????????????????# = = #? "????? ?????????? | | ???????????????????# """ m ## "????? ????????? | | ???????????????????#k""" ##??????? ???????? | | ???????????????????# """ #???????? ????????? | | ???????????????????# ! #???????? ????????? | | ???????????????????# ! #???????? ?????????? | | ???????????????????# #???????????????????? | | ???????????????????###########???????????????????? | | ?????????????????????????????????????????????????? | | ?????????????????????????????????????????????????? | | ?????????????????????????????????????????????????? | | ?????????????????????????????????????????????????? | | ?????????????????????????????????????????????????? | | ?????????????????????????????????????????????????? | | ?????????????????????????????????????????????????? | | ?????????????????????????????????????????????????? | | ?????????????????????????????????????????????????? | | ?????????????????????????????????????????????????? | | ?????????????????????????????????????????????????? | | ?????????????????????????????????????????????????? | | ?????????????????????????????????????????????????? | | ?????????????????????????????????????????????????? | | ?????????????????????????????????????????????????? | | ?????????????????????????????????????????????????? | +----------------------------------------------------+ Best States ------------- Heat Dissipation 28 Energy Generation 14 Energy Capacity 280 Matter Stores 300 Matter Capacity 450 Sight Range 16 Terrain Scan Density 10 Armor Coverage 450 Weapon Shielding 33 Evasion (%) 55 Item Schematics ----------------- None Robot Schematics ------------------ None Fabricated ------------ Nothing Alien Tech Used ----------------- None Achievements -------------- Risk Taker Storm Trooper Challenges ------------ None Game ------ Seed TargetingTeslaFlightbrick Manual? 0 Play Time 00:22:22 Cumulative 0.3 hours Start 2024.04.10 @ 04:17:47 End 2024.04.10 @ 04:37:38 Sessions 1 Manual Loads 0 Difficulty Rogue Special Mode None Game No. 1 Rogue 1 Adventurer 0 Explorer 0 Win Type - Total 0 Types 0/0/0/0/0/0/0/0/0 Lore% 0 Gallery% 2 Achievement% 1 Wizard Run 0 Options --------- Layout 1 ASCII 0 Keyboard 0 Movement Mouse Keybinds 0 Fullscreen 1 Font 24/Smallcaps Map View 50x35 Zoom Use 0% Tactical HUD 1 Map Filters NONE Filters NONE Steam 1 RUN: 3dd92699-8d39-4ecd-b8ca-8913631bdb32